bitfinex/quotes_ETHUSD_20260109
["timestamp","ask_amount","ask_price","bid_price","bid_amount"]
[1767973072772,0.0191629,3139.6,3138.4,0.249]
[1767973072974,0.002,3139.7,3138.5,3.18623546]
[1767973073267,0.0191629,3139.4,3138.2,0.00080016]
[1767973073487,0.0191629,3139.4,3138.6,0.249]
[1767973074148,0.0191629,3138.8,3138.2,0.00080016]
[1767973074452,0.0191629,3139.2,3138.2,0.00080016]
[1767973074650,0.0191629,3139.0,3138.2,0.00080016]
[1767973075049,3.18706685,3139.7,3138.2,0.00080016]
[1767973075250,0.002,3139.7,3138.2,0.00080016]
[1767973075450,3.18707031,3139.7,3138.3,1.17084386]
[1767973075750,3.18707031,3139.7,3138.4,0.249]
[1767973075751,0.002,3139.7,3138.4,0.249]
[1767973076153,6.69077708,3139.7,3138.2,0.00080016]
[1767973076354,0.0191629,3139.6,3138.3,0.249]
[1767973076676,0.0191629,3139.6,3138.2,0.00080016]
[1767973076677,0.0191629,3139.6,3138.4,0.249]
[1767973077039,3.1854235,3139.3,3138.5,0.249]
[1767973077244,3.1854235,3139.3,3138.2,0.00080016]
[1767973077444,3.82441333,3139.3,3138.3,0.249]
[1767973077645,0.63898983,3139.3,3138.3,0.249]
[1767973077858,6.37065964,3139.4,3138.3,0.249]
[1767973078057,3.18532982,3139.4,3138.3,0.249]
[1767973078467,6.38982254,3139.4,3138.2,0.00080016]
[1767973078666,3.18518037,3139.6,3138.4,0.249]
[1767973078876,0.0191629,3139.4,3138.2,0.00080016]
[1767973079077,9.55748829,3138.9,3138.2,0.00080016]
[1767973079380,0.0191629,3138.8,3138.2,0.00080016]
[1767973079748,0.0191629,3138.6,3138.2,0.00080016]
[1767973079944,0.0191629,3138.3,3136.8,0.0008064]
[1767973080172,0.0191629,3138.3,3137.0,6.37546606]
[1767973080372,0.01996306,3138.6,3137.0,6.37546606]
[1767973080373,0.0191629,3138.4,3137.1,0.66244661]
[1767973080682,0.0191629,3138.4,3137.0,3.18770706]
[1767973080683,0.0191629,3138.2,3137.0,3.18774457]
[1767973080886,0.0191629,3138.2,3137.1,0.249]
[1767973081086,0.01996306,3138.6,3137.1,0.249]
[1767973081087,0.00080016,3138.6,3137.2,10.4845112]
[1767973081257,0.002,3139.7,3138.2,0.9226441]
[1767973081454,0.002,3139.7,3138.4,0.92184386]
[1767973081683,3.18380082,3140.9,3138.5,0.92184386]
[1767973081888,0.0191629,3140.8,3138.7,0.92184386]
[1767973082089,0.002,3141.0,3139.1,0.92184386]
[1767973082476,3.18569945,3141.0,3139.2,1.95785688]
[1767973082684,3.18569945,3141.0,3139.3,0.92184386]
[1767973082880,6.36942862,3141.0,3139.3,0.92184386]
[1767973083198,6.36942862,3141.0,3138.1,0.37443278]
[1767973083199,0.0191629,3140.8,3139.4,0.99444634]
[1767973083511,0.0191629,3140.8,3138.3,0.99444634]
[1767973083808,0.0211629,3141.0,3138.5,9.79003534]
[1767973083971,0.0211629,3141.0,3138.7,4.18043935]
[1767973084181,0.002,3141.0,3139.3,6.37081649]
[1767973084390,0.002,3141.0,3139.4,0.249]
[1767973084797,0.002,3141.0,3138.8,4.18032535]
[1767973084798,0.0191629,3140.9,3138.8,0.99444634]
[1767973085107,9.55292319,3140.4,3138.3,3.18643851]
[1767973085405,6.36861546,3140.4,3138.5,0.99444634]
[1767973085610,9.55292319,3140.4,3138.5,0.99444634]
[1767973085964,0.0191629,3139.9,3138.4,0.41816851]
[1767973086165,9.55292319,3140.4,3138.5,0.249]
[1767973086414,6.36861546,3140.4,3138.5,0.249]
[1767973086694,0.63877784,3140.3,3138.5,0.249]
[1767973087062,6.36902108,3140.2,3138.6,3.18613394]
[1767973087397,0.0191629,3139.6,3138.2,0.00080024]
[1767973087561,0.0191629,3139.8,3138.2,0.24980024]
[1767973087776,0.0191629,3139.6,3138.2,3.77993084]
[1767973088020,0.0191629,3139.6,3138.2,0.34445419]
[1767973088218,0.0191629,3139.5,3138.2,0.00080024]
[1767973088520,0.0191629,3139.3,3138.2,0.00080024]
[1767973088956,0.0191629,3139.5,3138.2,0.00080024]
[1767973089238,9.55687935,3139.1,3138.2,0.00080024]
[1767973089402,6.3712529,3139.1,3138.2,0.00080024]
[1767973090514,6.88753822,3139.1,3138.2,0.00080024]
[1767973090934,0.0191629,3138.6,3137.3,0.001]
[1767973091121,0.0191629,3137.6,3135.5,1.80874955]
[1767973091418,0.0199693,3137.2,3135.6,0.249]
[1767973091584,0.0199693,3137.2,3135.7,0.76220143]
[1767973091923,0.0008064,3137.2,3135.7,0.76220143]
[1767973092131,0.0008064,3137.2,3135.7,1.75664777]
[1767973092623,0.0008064,3137.2,3135.8,0.249]
[1767973093181,0.0008064,3137.2,3135.9,6.37775438]
[1767973093382,0.0008064,3137.2,3136.0,0.66267544]
[1767973093889,0.0008064,3137.2,3136.1,0.249]
[1767973094788,3.18669038,3138.1,3136.1,1.24344634]
[1767973094789,3.18664159,3138.1,3136.1,1.24344634]
[1767973094989,6.37247092,3138.5,3136.8,0.0008072]
[1767973095211,3.8250133,3138.5,3137.0,6.375518]
[1767973095419,0.0191629,3138.4,3137.0,3.187759]
[1767973095717,0.0191629,3138.4,3136.8,0.0008072]
[1767973095718,0.0191629,3138.0,3136.8,0.0008072]
[1767973095894,0.0191629,3138.0,3136.0,0.66367544]
[1767973095895,0.0191629,3137.2,3136.0,0.66367544]
[1767973096093,0.0191629,3137.0,3136.0,0.001]
[1767973096301,0.0199701,3137.2,3136.0,0.001]
[1767973096498,0.0008072,3137.2,3136.0,0.001]
[1767973096701,0.0008072,3137.2,3136.4,3.18833488]
[1767973096885,0.0008072,3137.2,3136.5,0.31883349]
[1767973097713,0.0008072,3137.2,3136.2,3.18851096]
[1767973098222,0.0008072,3137.2,3136.0,0.001]
[1767973098422,0.0191629,3137.1,3136.0,0.001]
[1767973098718,0.0191629,3136.6,3136.0,0.001]
[1767973099124,0.0191629,3136.9,3136.0,0.001]
[1767973099327,0.0191629,3136.1,3135.1,0.00080064]
[1767973099695,0.0191629,3135.9,3135.1,0.00080064]
[1767973100099,0.0191629,3136.1,3135.1,0.00080064]
[1767973100332,3.18816552,3136.6,3135.1,0.31986823]
[1767973100531,0.0008072,3137.2,3135.2,0.249]
[1767973100832,6.37568394,3137.0,3135.2,0.249]
[1767973101131,6.37568394,3137.0,3135.3,0.249]
[1767973101303,3.20684055,3137.1,3135.4,6.37877144]
[1767973101627,6.3753553,3137.1,3135.5,0.66277714]
[1767973101831,0.0191629,3137.0,3135.5,0.66277714]
[1767973102018,0.0191629,3136.8,3135.5,0.66277714]
[1767973102419,0.0191629,3137.0,3135.5,0.66277714]
[1767973102620,6.3753553,3137.1,3135.5,0.66277714]
[1767973102819,0.0191629,3136.8,3135.6,0.72905486]
[1767973103139,0.0191629,3136.8,3135.1,0.31986823]
[1767973103140,0.0191629,3136.6,3135.1,0.56886823]
[1767973103336,6.37694098,3136.3,3135.1,0.00080064]
[1767973103634,0.0191629,3136.2,3135.1,0.00080064]
[1767973104007,0.0191629,3136.0,3135.1,0.00080064]
[1767973104214,0.0191629,3135.8,3135.1,0.00080064]
[1767973105029,0.0191629,3136.0,3135.1,0.00080064]
[1767973105233,0.0191629,3135.8,3135.1,0.00080064]
[1767973105429,3.20824348,3135.7,3135.1,0.00080064]
[1767973105929,0.0191629,3136.0,3135.1,0.00080064]
[1767973106541,0.0191629,3136.0,3135.9,0.001]
[1767973106860,0.0191629,3136.0,3135.1,0.00080064]
[1767973107490,6.37775438,3135.9,3135.1,0.00080064]
[1767973107693,3.18887719,3135.9,3135.1,0.00080064]
[1767973107835,0.0191629,3135.6,3135.1,0.00080064]
[1767973108173,0.0191629,3135.8,3135.1,0.00080064]
[1767973108764,0.0191629,3135.8,3133.6,0.99444634]
[1767973108765,0.0191629,3135.3,3133.3,14.5]
[1767973109063,0.0191629,3135.3,3133.0,0.99444634]
[1767973109064,0.0191629,3134.7,3133.4,1.4501]
[1767973109243,0.0191629,3134.7,3133.4,3.19134703]
[1767973109446,0.0191629,3135.3,3133.2,3.44161432]
[1767973109447,0.99466945,3135.8,3133.3,6.38304662]
[1767973109632,0.0191629,3134.9,3133.3,6.38304662]
[1767973110035,0.0191629,3135.1,3133.3,6.38304662]
[1767973110248,0.0191629,3134.9,3133.4,0.66330466]
[1767973110968,0.0191629,3134.5,3133.4,0.66330466]
[1767973111263,0.2641629,3134.9,3133.4,0.66330466]
[1767973111471,0.2641629,3134.9,3133.5,6.38263922]
[1767973111472,0.0191629,3134.8,3133.5,6.38263922]
[1767973111630,6.62482672,3134.9,3133.6,0.70459439]
[1767973111830,3.43489441,3134.9,3133.6,0.70459439]
[1767973112337,0.0191629,3134.7,3133.6,0.70459439]
[1767973112672,6.64398962,3134.9,3133.6,0.70459439]
[1767973112989,0.0191629,3135.2,3133.6,0.70459439]
[1767973113134,0.65885463,3135.7,3133.5,6.38263922]
[1767973113135,3.18938572,3135.4,3133.7,0.70872336]
[1767973113442,3.18979266,3135.0,3133.8,3.1910141]
[1767973113635,3.18979266,3135.0,3133.9,0.249]
[1767973113832,0.0191629,3135.4,3133.9,0.249]
[1767973114041,3.1894082,3135.4,3133.9,0.249]
[1767973114241,0.0191629,3135.3,3134.0,0.98220423]
[1767973114443,0.0191629,3134.9,3134.0,0.98220423]
[1767973114643,0.0191629,3134.7,3132.8,0.97724044]
[1767973114936,0.0191629,3134.7,3133.4,0.249]
[1767973115138,0.0191629,3134.9,3133.7,3.19110294]
[1767973115334,0.0191629,3134.7,3133.4,0.249]
[1767973115538,3.19001328,3134.8,3133.5,6.38263922]
[1767973115740,3.19001328,3134.8,3133.6,0.66316392]
[1767973116242,3.18980027,3135.0,3133.6,0.66316392]
[1767973116737,0.0191629,3134.9,3133.6,0.66316392]
[1767973116936,3.18980027,3135.0,3133.6,0.66316392]
[1767973117539,3.18980027,3135.0,3133.7,6.38223186]
[1767973117744,0.0191629,3134.9,3133.8,0.70453958]
[1767973118447,0.0191629,3134.9,3133.7,3.19111593]
[1767973118871,0.0191629,3134.7,3133.6,0.249]
[1767973119071,0.0191629,3134.7,3133.2,0.001]
[1767973119072,0.0191629,3134.3,3133.2,0.001]
[1767973119273,0.0191629,3134.5,3133.4,3.1914195]
[1767973119477,0.246,3134.6,3133.6,3.19121265]
[1767973119775,3.19012749,3134.7,3133.6,6.38243041]
[1767973119976,3.18993109,3134.9,3133.6,6.38243041]
[1767973120355,6.39902508,3134.9,3133.6,6.38243041]
[1767973120759,3.20909399,3134.9,3133.6,6.38243041]
[1767973120955,6.39902508,3134.9,3133.7,0.67015724]
[1767973121283,0.0191629,3134.5,3133.5,3.19125434]
[1767973121470,0.0191629,3134.5,3133.2,0.001]
[1767973121779,0.0191629,3134.3,3133.2,0.001]
[1767973122476,0.0191629,3134.1,3133.2,0.001]
[1767973122678,0.0191629,3133.7,3133.2,0.001]
[1767973122880,0.0191629,3133.5,3132.8,0.0008088]
[1767973125350,0.0191629,3134.8,3132.8,1.22624044]
[1767973125555,3.20954118,3134.5,3132.9,9.57579237]
[1767973125756,0.0191629,3134.3,3133.0,1.32920328]
[1767973125956,6.39991946,3134.5,3133.0,1.08020328]
[1767973126268,6.64591946,3134.5,3133.0,1.08020328]
[1767973126595,0.0191629,3134.3,3133.0,1.08020328]
[1767973126778,0.0191629,3134.1,3133.0,1.08020328]
[1767973126969,0.2651629,3134.4,3132.9,0.249]
[1767973127174,0.0191629,3134.4,3132.9,0.249]
[1767973127682,3.19050505,3134.3,3133.0,6.38365782]
[1767973128184,0.0191629,3134.2,3133.0,6.38365782]
[1767973128678,3.19050505,3134.3,3133.0,6.38365782]
[1767973128879,3.19050505,3134.3,3133.1,0.66326578]
[1767973129110,0.0191629,3134.2,3133.1,0.66326578]
[1767973129281,0.0191629,3134.0,3132.9,0.249]
[1767973129647,6.38182456,3133.9,3132.9,0.249]
[1767973130078,0.0191629,3133.8,3132.8,0.0008088]
[1767973130298,0.0191629,3133.6,3132.8,0.0008088]
[1767973130589,0.0191629,3133.2,3132.8,0.0008088]
[1767973130804,0.0191629,3133.4,3132.8,0.0008088]
[1767973131149,0.0191629,3133.2,3132.8,0.0008088]
[1767973131402,0.0191629,3133.2,3132.4,0.00080112]
[1767973131403,0.0191629,3132.9,3132.4,0.00080112]
[1767973131889,0.0191629,3132.9,3130.8,0.97205526]
[1767973131890,3.19213458,3132.7,3130.8,0.97205526]
[1767973132093,6.38427978,3132.7,3130.9,1.39977505]
[1767973132293,0.0191629,3132.4,3130.9,1.39977505]
[1767973132584,0.0191629,3132.4,3130.7,6.63734764]
[1767973132786,0.246,3132.3,3130.7,10.80357672]
[1767973132963,0.00080112,3132.8,3130.8,0.97205526]
[1767973133288,0.24680112,3132.8,3130.8,0.97205526]
[1767973133474,3.43883736,3132.8,3130.8,0.97205526]
[1767973133784,3.43883736,3132.8,3131.0,9.58160331]
[1767973134149,6.6308736,3132.8,3131.0,9.58160331]
[1767973134984,3.43883736,3132.8,3131.0,9.58160331]
[1767973135284,0.0191629,3132.7,3131.0,9.58160331]
[1767973135722,0.0191629,3132.3,3131.0,3.19386777]
[1767973135858,0.0191629,3131.6,3129.8,0.97205526]
[1767973136058,0.0191629,3131.0,3129.9,0.33550701]
[1767973136353,0.0191629,3130.8,3129.6,3.19529652]
[1767973136549,0.0191629,3130.5,3129.3,0.97205526]
[1767973136782,0.0191629,3130.1,3129.2,3.19564307]
[1767973137021,0.0191629,3129.9,3129.0,0.0038318]
[1767973137726,0.0191629,3129.7,3129.0,0.0038318]
[1767973138019,3.21438996,3129.7,3129.0,0.0038318]
[1767973138228,0.0191629,3129.6,3129.0,0.0038318]
[1767973138939,0.0191629,3129.4,3129.0,0.0038318]
[1767973139090,0.0191629,3129.6,3129.0,0.0038318]
[1767973139516,0.96019106,3130.9,3129.0,0.0038318]
[1767973139517,0.0191629,3130.0,3129.0,0.0038318]
[1767973139684,0.0191629,3129.8,3129.0,0.0038318]
[1767973140081,0.246,3130.2,3129.0,0.0038318]
[1767973140334,3.19385237,3131.1,3129.0,0.0038318]
[1767973140512,0.0191629,3130.4,3129.0,0.0038318]
[1767973141726,0.0191629,3131.1,3129.0,0.97588706]
[1767973141887,3.21353955,3130.6,3130.4,0.0191629]
[1767973142087,0.0191629,3130.6,3129.8,3.19509055]
[1767973142308,0.2651629,3131.2,3129.8,0.31950906]
[1767973142509,0.0191629,3131.0,3129.6,3.19525012]
[1767973142712,0.0191629,3131.0,3130.2,3.19467923]
[1767973142988,0.0191629,3131.0,3129.9,3.19498713]
[1767973143189,0.0191629,3130.8,3129.9,3.19498713]
[1767973143430,0.0191629,3130.8,3129.8,3.19509013]
[1767973143637,0.0191629,3130.8,3129.5,3.19537633]
[1767973143926,0.0191629,3130.7,3129.3,0.001]
[1767973144086,0.0191629,3130.2,3129.3,0.001]
[1767973144427,0.0191629,3130.3,3129.3,0.001]
[1767973144719,0.0191629,3130.5,3129.3,0.001]
[1767973144920,0.0191629,3130.1,3129.3,0.001]
[1767973145325,0.0191629,3129.9,3129.3,0.001]
[1767973145560,0.0191629,3129.7,3129.3,0.001]
[1767973145823,0.0191629,3130.5,3129.0,0.0038318]
[1767973145824,0.0191629,3129.6,3129.0,0.0038318]
[1767973146506,3.21447609,3129.6,3129.0,0.0038318]
[1767973146703,3.8573498,3129.6,3129.0,0.0038318]
[1767973146919,3.2138852,3130.2,3129.0,0.0038318]
[1767973146920,3.19457238,3130.4,3129.0,0.0038318]
[1767973147093,0.0191629,3130.3,3129.0,0.0038318]
[1767973147426,0.2651629,3130.5,3129.0,0.0038318]
[1767973147591,6.65395606,3130.5,3129.0,0.0038318]
[1767973147925,0.0191629,3129.9,3129.0,0.0038318]
[1767973148126,0.0191629,3129.6,3129.0,0.0038318]
[1767973148288,3.21418245,3129.9,3129.0,0.0038318]
[1767973148497,0.0191629,3129.7,3129.0,0.0038318]
[1767973148927,0.0191629,3130.1,3129.0,0.0038318]
[1767973149130,0.246,3130.2,3129.0,0.0038318]
[1767973149293,3.21354079,3130.5,3129.0,0.0038318]
[1767973149492,0.0191629,3130.1,3129.0,0.0038318]
[1767973149852,0.0191629,3130.3,3129.0,0.0038318]
[1767973149853,0.0191629,3130.0,3129.0,0.0038318]
[1767973149990,0.0191629,3129.8,3129.0,0.0038318]
[1767973150905,0.0191629,3129.6,3129.0,0.0038318]
[1767973151230,0.0191629,3129.8,3129.0,0.0038318]
[1767973151706,0.0191629,3130.0,3129.0,0.0038318]
[1767973152066,0.0191629,3129.6,3129.0,0.0038318]
[1767973152223,0.0191629,3129.5,3129.0,0.0038318]
[1767973152417,0.0191629,3129.1,3127.1,0.99152443]
[1767973152630,0.0191629,3128.9,3127.6,0.249]
[1767973152851,0.0191629,3129.1,3127.6,0.249]
[1767973153030,0.00080224,3129.3,3128.5,3.19639376]
[1767973153238,0.00080224,3129.3,3128.5,6.71253354]
[1767973153555,3.19489093,3130.0,3128.9,0.00080232]
[1767973153756,3.45977033,3130.3,3128.9,0.00080232]
[1767973153942,0.0191629,3130.1,3128.9,0.00080232]
[1767973154110,3.19488817,3130.0,3128.9,0.00080232]
[1767973154947,0.0191629,3129.9,3129.3,0.001]
[1767973155139,0.0211629,3129.7,3129.3,0.001]
[1767973155339,0.0191629,3129.5,3128.9,0.00080232]
[1767973155550,0.0171629,3129.5,3128.9,0.00080232]
[1767973156127,3.21260784,3129.5,3128.9,0.00080232]
[1767973156527,0.0171629,3129.5,3128.9,0.00080232]
[1767973156727,3.21256714,3129.5,3128.9,0.00080232]
[1767973157087,0.002,3129.7,3128.9,0.00080232]
[1767973157661,0.0211629,3129.7,3128.9,0.00080232]
[1767973157824,6.41156638,3129.7,3128.9,0.00080232]
[1767973158276,0.0191629,3129.5,3128.9,0.00080232]
[1767973159469,3.19690021,3130.0,3128.9,0.00080232]
[1767973159672,0.002,3130.0,3128.9,0.00080232]
[1767973159833,3.19693233,3130.0,3128.9,0.00080232]
[1767973160033,0.002,3130.0,3128.9,0.00080232]
[1767973160264,0.002,3130.0,3128.9,0.64012569]
[1767973160430,0.0191629,3129.6,3128.9,0.64012569]
[1767973160641,0.002,3130.0,3128.9,0.64012569]
[1767973161438,0.0191629,3129.9,3128.9,0.00080232]
[1767973161631,0.0191629,3129.7,3128.9,0.00080232]
[1767973162254,3.2143869,3129.7,3128.9,0.00080232]
[1767973162653,0.0191629,3129.3,3128.9,0.00080232]
[1767973162958,0.0191629,3129.2,3128.3,0.000804]
[1767973163157,0.0191629,3129.0,3128.3,0.000804]
[1767973163569,0.0191629,3129.2,3128.3,0.000804]
[1767973163754,0.000804,3128.7,3128.4,3.19650036]
[1767973163933,0.0191629,3128.9,3128.3,0.0008048]
[1767973164273,0.00080232,3129.3,3128.4,6.39303497]
[1767973165166,0.0191629,3129.2,3128.3,0.32055567]
[1767973165344,0.0191629,3129.0,3128.3,0.0008048]
[1767973165862,0.0191629,3128.4,3127.2,0.25]
[1767973166176,0.0191629,3128.6,3127.6,3.19733425]
[1767973166337,0.0191629,3128.4,3127.6,0.31973343]
[1767973166537,0.0191629,3128.4,3127.3,6.39529306]
[1767973166538,0.0191629,3128.4,3127.3,3.19764653]
[1767973166745,0.0191629,3128.1,3127.3,3.19764653]
[1767973166958,0.0191629,3127.9,3126.9,0.25]
[1767973167267,0.01516292,3127.9,3126.9,0.25]
[1767973167470,9.58926,3128.5,3126.9,0.25]
[1767973167471,0.0191629,3127.8,3126.9,0.25]
[1767973167676,6.39284,3128.5,3127.2,3.19772439]
[1767973167988,0.2651629,3128.2,3127.2,3.83727423]
[1767973168147,0.0191629,3128.0,3127.2,3.83727423]
[1767973168332,0.0191629,3127.8,3126.4,3.19852626]
[1767973168532,0.0191629,3127.7,3126.5,0.25]
[1767973168751,0.0191629,3127.5,3126.7,3.198227]
[1767973168950,0.0191629,3127.7,3126.5,0.25]
[1767973169168,0.0191629,3127.5,3126.5,0.59496171]
[1767973169367,0.246,3127.8,3127.0,3.19790875]
[1767973169669,3.21609384,3128.0,3126.5,3.79338497]
[1767973169876,0.0191629,3127.6,3126.3,0.001]
[1767973170187,0.0191629,3127.3,3126.3,0.001]
[1767973170698,0.0191629,3127.7,3126.3,0.001]
[1767973170699,0.0191629,3127.6,3126.3,0.001]
[1767973170908,0.2651629,3128.2,3126.3,0.99252443]
[1767973171202,0.0191629,3127.7,3126.3,0.001]
[1767973171404,0.0191629,3127.5,3126.3,0.001]
[1767973171550,0.0191629,3127.9,3126.3,0.001]
[1767973171749,0.0191629,3127.7,3126.3,0.001]
[1767973171983,0.0191629,3127.7,3126.3,0.99252443]
[1767973172383,0.0191629,3127.6,3126.4,6.39713408]
[1767973172551,0.0191629,3127.4,3126.5,0.63981341]
[1767973173579,0.0191629,3127.5,3126.5,0.63981341]
[1767973173788,0.0191629,3127.3,3126.5,0.63981341]
[1767973173984,0.0191629,3127.1,3126.3,0.001]
[1767973174288,0.0191629,3127.5,3126.3,0.001]
[1767973174671,3.21663622,3127.5,3126.3,0.001]
[1767973175189,0.0191629,3127.4,3126.3,0.001]
[1767973175485,0.0191629,3127.2,3126.3,0.001]
[1767973175699,0.01716291,3127.2,3126.3,0.001]
[1767973175879,3.46240048,3127.7,3126.3,0.001]
[1767973176059,0.0191629,3127.5,3126.3,0.001]
[1767973176561,3.21661216,3127.5,3126.3,6.3983387]
[1767973176772,0.0191629,3127.4,3126.4,0.73013051]
[1767973176974,4.11666128,3128.3,3126.4,0.73013051]
[1767973176975,0.0191629,3128.1,3126.5,0.90296636]
[1767973177334,0.0008048,3128.7,3126.5,0.90296636]
[1767973177599,0.0008048,3128.7,3126.4,0.73013051]
[1767973177600,1.23999364,3128.4,3126.4,0.73013051]
[1767973177804,0.29704353,3128.3,3126.4,0.73013051]
[1767973178096,1.23999364,3128.4,3126.5,1.12301049]
[1767973178097,0.99399364,3128.4,3126.5,1.12301049]
[1767973178400,0.246,3128.5,3126.5,1.12301049]
[1767973178584,0.0008048,3128.7,3126.6,17.59522509]
[1767973178785,0.0008048,3128.7,3126.8,0.0191629]
[1767973178985,3.19707995,3128.7,3127.0,0.0191629]
[1767973179304,10.58356442,3128.7,3127.1,0.25]
[1767973179594,0.29706448,3128.6,3127.2,0.25]
[1767973179800,13.77983957,3128.7,3126.6,6.41588776]
[1767973180100,0.29706848,3128.6,3126.7,0.25]
[1767973180307,0.29706848,3128.5,3126.6,6.39672486]
[1767973180608,0.29706848,3128.5,3126.8,6.39631572]
[1767973180609,6.39324872,3128.3,3126.8,6.39631572]
[1767973180765,6.39324872,3128.3,3126.9,0.66463157]
[1767973180766,3.19662436,3128.3,3126.9,0.66463157]
[1767973180966,0.002,3127.9,3126.9,0.68379447]
[1767973181161,0.0008048,3128.7,3127.1,0.0191629]
[1767973181403,0.0008048,3128.7,3127.3,0.0191629]
[1767973181710,0.0008048,3128.7,3127.5,0.0191629]
[1767973182099,0.0008048,3128.7,3127.6,1.15296636]
[1767973182300,0.0008048,3128.7,3127.6,0.90296636]
[1767973182517,0.0008048,3128.7,3127.7,0.25]
[1767973182840,0.0008048,3128.7,3127.8,6.39427072]
[1767973183019,0.0008048,3128.7,3127.9,0.66442707]
[1767973183592,0.0008048,3128.7,3126.9,0.66463157]
[1767973183824,0.29722061,3128.6,3127.2,3.19766623]
[1767973183999,0.99479844,3128.7,3127.2,3.19774426]
[1767973184207,1.29121144,3128.6,3127.2,0.25]
[1767973184400,0.99399364,3128.6,3126.9,3.1979794]
[1767973184605,6.39284,3128.5,3127.1,3.19779773]
[1767973184801,6.39284,3128.5,3127.2,0.34477977]
[1767973185207,3.19642,3128.5,3127.2,0.34477977]
[1767973185419,3.19636094,3128.6,3127.2,0.34477977]
[1767973186227,0.0008048,3128.7,3127.3,0.90296636]
[1767973186724,0.002,3129.2,3127.9,0.90296636]
[1767973186927,0.002,3129.2,3128.3,0.0008056]
[1767973187494,0.29745839,3129.1,3128.3,0.0008056]
[1767973187715,0.29745839,3129.0,3128.3,0.0008056]
[1767973188296,0.33808023,3129.2,3128.3,0.0008056]
[1767973188495,0.29755324,3129.1,3128.3,0.0008056]
[1767973188726,6.39202274,3128.9,3128.3,0.0008056]
[1767973189025,0.0191629,3128.5,3126.6,0.001]
[1767973189225,0.29759235,3128.4,3126.7,3.1982181]
[1767973189446,3.358,3128.2,3126.8,0.31992181]
[1767973189623,0.3168377,3128.1,3126.6,0.001]
[1767973189824,0.90992455,3127.9,3126.6,0.001]
[1767973190029,0.2976748,3127.8,3126.6,0.001]
[1767973190326,0.29775465,3127.7,3126.6,0.001]
[1767973190500,0.29775465,3127.6,3126.6,0.001]
[1767973190706,0.29775465,3127.5,3126.6,0.001]
[1767973190901,0.90992455,3127.3,3126.3,0.001]
[1767973191113,0.31700124,3127.2,3126.3,0.001]
[1767973191317,0.29795905,3127.1,3126.3,0.001]
[1767973191519,0.31713555,3127.0,3126.0,0.0008004]
[1767973191804,0.29797265,3126.9,3126.0,0.0008004]
[1767973192136,0.0191629,3126.8,3126.0,0.0008004]
[1767973192307,0.0191629,3127.0,3125.5,3.19939073]
[1767973192308,0.0008004,3126.4,3125.5,3.19939073]
[1767973192503,0.0008004,3126.4,3125.6,3.19934549]
[1767973192731,0.0008004,3126.4,3125.6,3.83923799]
[1767973193052,0.0008004,3126.4,3125.6,3.83924391]
[1767973193239,0.0008004,3126.4,3125.6,7.03862962]
[1767973193426,3.19775723,3127.2,3126.0,0.00080048]
[1767973193736,0.0191629,3126.9,3126.0,0.00080048]
[1767973194038,0.0191629,3126.9,3125.2,0.90115927]
[1767973194039,0.0191629,3126.5,3125.2,3.19969476]
[1767973194222,0.00080048,3126.4,3125.2,0.63996067]
[1767973194422,0.0191629,3126.3,3124.9,3.20010091]
[1767973194736,0.0191629,3126.3,3125.3,3.19967186]
[1767973194944,3.2178483,3126.3,3125.0,0.25]
[1767973195123,3.2178483,3126.3,3125.2,3.19979521]
[1767973195444,3.19936752,3126.4,3125.2,3.19979521]
[1767973195737,0.0191629,3126.0,3125.1,3.19989153]
[1767973195942,0.0191629,3126.2,3125.1,3.19989153]
[1767973196242,0.0191629,3126.2,3124.7,0.85357015]
[1767973196243,0.0191629,3125.5,3124.7,0.0008056]
[1767973196428,0.0191629,3125.4,3124.7,0.0008056]
[1767973196608,0.0191629,3125.7,3124.7,0.0008056]
[1767973196829,0.0191629,3125.5,3124.7,0.0008056]
[1767973197462,0.0191629,3125.7,3124.7,0.0008056]
[1767973197661,0.0191629,3125.8,3124.7,0.0008056]
[1767973198030,0.0191629,3125.6,3124.7,0.0008056]
[1767973198354,0.0191629,3125.9,3124.7,0.0008056]
[1767973198845,3.19878103,3126.2,3124.7,0.0008056]
[1767973198846,0.0191629,3126.1,3124.7,0.0008056]
[1767973199054,3.19897632,3126.0,3124.7,0.0008056]
[1767973199267,0.0191629,3126.1,3124.7,0.90196487]
[1767973199430,0.00080048,3126.4,3124.7,0.90196487]
[1767973199855,3.1993777,3126.4,3124.7,0.90196487]
[1767973200056,0.0191629,3126.3,3124.7,0.90196487]
[1767973200256,0.0191629,3126.1,3124.8,1.30031938]
[1767973200443,0.0191629,3126.3,3124.8,1.30031938]
[1767973200653,0.0191629,3125.4,3124.7,0.0008056]
[1767973200857,0.90992455,3126.3,3124.7,0.0008056]
[1767973201055,0.0191629,3125.5,3124.7,0.0008056]
[1767973201469,0.00080048,3126.4,3125.1,0.90115927]
[1767973201766,0.0191629,3127.1,3126.0,0.00080056]
[1767973201932,3.21656036,3127.6,3126.1,0.25]
[1767973202133,0.64138253,3127.6,3126.1,1.15115927]
[1767973202367,0.002,3128.0,3126.4,0.90115927]
[1767973202530,0.002,3128.3,3127.2,0.90115927]
[1767973202734,0.002,3128.3,3126.1,0.25952256]
[1767973202931,0.0191629,3128.2,3126.7,0.90639074]
[1767973203131,0.0191629,3128.0,3126.7,3.44825043]
[1767973203333,0.0191629,3127.8,3126.7,3.44825043]
[1767973203537,0.002,3128.3,3126.8,0.90639074]
[1767973203739,0.00018726,3128.3,3126.8,0.90639074]
[1767973204392,0.0008056,3128.7,3127.1,0.90639074]
[1767973204593,0.0008056,3128.7,3127.2,0.90639074]
[1767973204780,0.0008056,3128.7,3127.4,0.90639074]
[1767973204980,0.0008056,3128.7,3127.5,14.75]
[1767973205211,0.0008056,3128.7,3127.8,0.90639074]
[1767973205416,0.002,3129.2,3128.3,0.0008064]
[1767973205701,0.002,3129.6,3128.9,0.0008024]
[1767973205901,0.0001835,3129.6,3128.9,0.0008024]
[1767973206963,0.0001835,3129.6,3128.9,0.90719314]
[1767973207165,0.0001835,3129.6,3129.0,6.39181846]
[1767973207394,0.0001835,3129.6,3129.1,0.88926209]
[1767973207706,0.0001835,3129.6,3128.9,0.0008024]
[1767973208002,0.0001835,3129.6,3129.0,0.25]
[1767973208805,0.002,3130.0,3129.0,0.25]
[1767973209108,0.002,3130.0,3128.9,10.49520813]
[1767973209109,0.002,3130.0,3129.1,0.25]
[1767973209321,0.002,3130.0,3128.9,3.19679465]
[1767973209523,0.0008024,3129.3,3128.3,0.0008064]
[1767973209808,0.0008024,3129.3,3128.5,3.19635234]
[1767973210098,0.0008024,3129.3,3128.4,0.25]
[1767973210264,0.002,3130.0,3128.9,6.39200299]
[1767973210468,0.002,3130.0,3129.0,0.6392003]